bitfinex/quotes_BTCUSD_20241022
["timestamp","ask_amount","ask_price","bid_price","bid_amount"]
[1729618240271,0.26965151,67365.0,67364.0,0.001511]
[1729618241027,0.26965151,67365.0,67364.0,0.076711]
[1729618241028,0.2280385,67365.0,67364.0,0.076711]
[1729618241269,0.20578263,67365.0,67364.0,0.076711]
[1729618241526,0.161271,67365.0,67364.0,0.076711]
[1729618241765,0.20578185,67365.0,67364.0,0.076711]
[1729618244460,0.161271,67365.0,67364.0,0.076711]
[1729618244945,0.20578185,67365.0,67364.0,0.076711]
[1729618245194,0.161271,67365.0,67364.0,0.076711]
[1729618245700,0.20578219,67365.0,67364.0,0.076711]
[1729618246169,0.20578217,67365.0,67364.0,0.076711]
[1729618246410,0.161271,67365.0,67364.0,0.076711]
[1729618246627,0.20578255,67365.0,67364.0,0.076711]
[1729618247385,0.20578255,67365.0,67364.0,0.001511]
[1729618249519,0.161271,67365.0,67364.0,0.001511]
[1729618249708,0.20578229,67365.0,67364.0,0.001511]
[1729618249956,0.20578229,67365.0,67364.0,0.00042749]
[1729618251181,0.161271,67365.0,67364.0,0.00042749]
[1729618251415,0.20578229,67365.0,67364.0,0.00042749]
[1729618251635,0.161271,67365.0,67364.0,0.00042749]
[1729618252086,0.20578229,67365.0,67364.0,0.00042749]
[1729618253025,0.20578514,67365.0,67364.0,0.00042749]
[1729618253271,0.161271,67365.0,67364.0,0.00042749]
[1729618253500,0.20578915,67365.0,67364.0,0.00042749]
[1729618254191,0.161271,67365.0,67364.0,0.00042749]
[1729618255593,0.22804248,67365.0,67364.0,0.00042749]
[1729618255878,0.161271,67365.0,67364.0,0.00042749]
[1729618256124,0.22804248,67365.0,67364.0,0.00042749]
[1729618256618,0.161271,67365.0,67364.0,0.00042749]
[1729618257115,0.148453,67361.0,67360.0,0.00319249]
[1729618258365,0.150453,67361.0,67360.0,0.00319249]
[1729618259340,0.002,67361.0,67360.0,0.00319249]
[1729618259600,0.152453,67361.0,67360.0,0.00319249]
[1729618260082,0.19699434,67361.0,67360.0,0.00319249]
[1729618260813,0.49390234,67361.0,67360.0,0.00319249]
[1729618261291,0.004,67361.0,67360.0,0.00319249]
[1729618261536,0.16358824,67361.0,67360.0,0.00319249]
[1729618262066,0.16358792,67361.0,67360.0,0.00319249]
[1729618262370,0.27196843,67361.0,67360.0,0.00319249]
[1729618262887,0.31651138,67361.0,67360.0,0.00319249]
[1729618263119,0.43639636,67361.0,67360.0,0.00319249]
[1729618263417,0.148458,67359.0,67358.0,0.00165]
[1729618263597,0.46184508,67359.0,67358.0,0.00165]
[1729618263842,0.51938378,67359.0,67358.0,0.00165]
[1729618264588,0.25685151,67353.0,67352.0,0.0029589]
[1729618264815,0.30360235,67353.0,67352.0,0.0029589]
[1729618265025,0.2702103,67353.0,67350.0,0.0029589]
[1729618265237,0.148475,67351.0,67350.0,0.0029589]
[1729618265454,0.15960656,67351.0,67350.0,0.0029589]
[1729618267287,0.16060656,67351.0,67350.0,0.0029589]
[1729618268812,0.16160656,67351.0,67350.0,0.0029589]
[1729618270147,0.26998707,67351.0,67350.0,0.0029589]
[1729618270367,0.39074283,67351.0,67350.0,0.0029589]
[1729618270581,0.13388732,67351.0,67350.0,0.0029589]
[1729618270796,0.45855856,67351.0,67350.0,0.0029589]
[1729618271024,0.45855856,67351.0,67350.0,0.00217911]
[1729618271269,0.45755856,67351.0,67350.0,0.00217911]
[1729618271494,0.098,67350.0,67343.0,0.00217911]
[1729618271736,0.25687151,67344.0,67343.0,0.00217911]
[1729618271957,0.148493,67343.0,67342.0,0.02324336]
[1729618272199,0.6984164,67343.0,67342.0,0.02324336]
[1729618272478,0.6984164,67343.0,67326.0,0.0805]
[1729618272479,0.0977,67341.0,67327.0,0.22266425]
[1729618272700,0.25690651,67328.0,67327.0,0.22266425]
[1729618272931,0.25690651,67328.0,67327.0,0.22484336]
[1729618273146,0.25690651,67328.0,67327.0,0.00217911]
[1729618274091,0.25890651,67328.0,67327.0,0.00217911]
[1729618274846,0.26090651,67328.0,67327.0,0.00217911]
[1729618276851,0.004,67328.0,67327.0,0.00217911]
[1729618277315,0.004,67328.0,67327.0,0.15070711]
[1729618277563,0.004,67328.0,67327.0,0.00217911]
[1729618277784,0.004,67328.0,67327.0,0.15070711]
[1729618278011,0.002,67328.0,67327.0,0.00204011]
[1729618278767,0.25890651,67328.0,67327.0,0.00204011]
[1729618278995,0.148531,67326.0,67325.0,0.00204011]
[1729618279204,0.445585,67327.0,67326.0,0.00204011]
[1729618279655,0.25690851,67327.0,67326.0,0.00204011]
[1729618280115,0.10838051,67327.0,67326.0,0.00204011]
[1729618280334,0.148528,67327.0,67326.0,0.00204011]
[1729618280792,0.149528,67327.0,67326.0,0.00204011]
[1729618281011,0.150528,67327.0,67326.0,0.00204011]
[1729618282159,0.17705412,67327.0,67326.0,0.00204011]
[1729618283531,0.148535,67324.0,67323.0,0.00165]
[1729618283766,0.19807855,67327.0,67323.0,0.00165]
[1729618283978,0.148535,67324.0,67323.0,0.00369011]
[1729618284256,0.04973475,67326.0,67323.0,0.00369011]
[1729618284482,0.19826575,67326.0,67325.0,0.00204011]
[1729618285126,0.19826575,67326.0,67325.0,0.00188734]
[1729618285355,0.148531,67326.0,67325.0,0.00188734]
[1729618285574,0.148531,67326.0,67325.0,0.02513905]
[1729618285789,0.148531,67326.0,67325.0,0.00188734]
[1729618286677,0.4456,67325.0,67324.0,0.00188734]
[1729618286884,0.148533,67325.0,67324.0,0.00188734]
[1729618287323,0.148535,67324.0,67323.0,0.00165]
[1729618287561,0.242635,67324.0,67323.0,0.00165]
[1729618288442,0.41218743,67324.0,67323.0,0.00165]
[1729618289155,0.242635,67324.0,67323.0,0.00165]
[1729618289405,0.0941,67324.0,67323.0,0.00165]
[1729618289624,0.004,67324.0,67323.0,0.08445]
[1729618290135,0.004,67324.0,67323.0,0.08633734]
[1729618290136,0.009,67324.0,67323.0,0.08633734]
[1729618290360,0.018,67324.0,67323.0,0.08633734]
[1729618290585,0.148531,67326.0,67323.0,0.08633734]
[1729618290815,0.000826,67328.0,67323.0,0.08633734]
[1729618291063,0.008,67324.0,67323.0,0.08633734]
[1729618291285,0.004,67324.0,67323.0,0.08633734]
[1729618292181,0.148533,67325.0,67323.0,0.08633734]
[1729618292415,0.1,67324.0,67323.0,0.08633734]
[1729618292653,0.102,67324.0,67323.0,0.08633734]
[1729618293099,0.102,67324.0,67323.0,0.23487434]
[1729618293315,0.102,67324.0,67323.0,0.08633734]
[1729618294081,0.102,67324.0,67323.0,0.23487434]
[1729618294623,0.102,67324.0,67323.0,0.33297434]
[1729618294857,0.102,67324.0,67323.0,0.48193349]
[1729618295108,0.102,67324.0,67323.0,0.76148592]
[1729618295341,0.102,67324.0,67323.0,0.59193349]
[1729618295582,0.1,67324.0,67323.0,0.59193349]
[1729618304325,0.1,67324.0,67323.0,0.76148592]
[1729618304982,0.1,67324.0,67323.0,0.76348592]
[1729618305203,0.0921875,67324.0,67323.0,0.78648592]
[1729618306517,0.05419616,67324.0,67323.0,0.78648592]
[1729618310764,0.05502216,67324.0,67323.0,0.78648592]
[1729618314202,0.03266941,67324.0,67323.0,0.78648592]
[1729618314408,0.000826,67325.0,67324.0,0.29042234]
[1729618314627,0.000826,67325.0,67324.0,0.61395119]
[1729618314854,0.000826,67325.0,67324.0,0.61098149]
[1729618315064,0.000826,67325.0,67324.0,0.65481879]
[1729618315631,0.000826,67325.0,67324.0,0.65781879]
[1729618316617,0.000826,67325.0,67324.0,0.68273744]
[1729618316838,0.000826,67325.0,67324.0,0.61698149]
[1729618317276,0.000826,67325.0,67324.0,0.68273744]
[1729618317494,0.000826,67325.0,67324.0,0.61698149]
[1729618317910,0.000826,67325.0,67324.0,0.66078927]
[1729618318334,0.000826,67325.0,67324.0,0.61698149]
[1729618318967,0.000826,67328.0,67327.0,0.16741534]
[1729618319196,0.000826,67328.0,67327.0,0.68949662]
[1729618319463,0.000826,67328.0,67327.0,0.68652692]
[1729618320410,0.000826,67328.0,67327.0,0.68952692]
[1729618320662,0.000826,67328.0,67327.0,0.69252692]
[1729618321135,1e-06,67328.0,67327.0,0.78502692]
[1729618321366,0.22266425,67343.0,67342.0,0.16738234]
[1729618321588,0.22266425,67343.0,67342.0,0.66399392]
[1729618321826,0.31886425,67351.0,67350.0,0.00688734]
[1729618322071,0.31886425,67351.0,67350.0,0.30432449]
[1729618322290,0.0962,67351.0,67350.0,0.30432449]
[1729618322948,0.0962,67351.0,67350.0,0.30732449]
[1729618323169,0.0962,67351.0,67350.0,0.31032449]
[1729618325647,0.0962,67351.0,67350.0,0.30532449]
[1729618326098,0.0962,67351.0,67350.0,0.31032449]
[1729618327742,0.0962,67351.0,67350.0,0.15636534]
[1729618328395,0.0962,67351.0,67350.0,0.31032449]
[1729618333325,0.097026,67351.0,67350.0,0.31032449]
[1729618335551,0.097026,67351.0,67350.0,0.15636534]
[1729618335789,0.179926,67351.0,67350.0,0.00788734]
[1729618336025,0.328401,67351.0,67350.0,0.00788734]
[1729618337396,0.56218135,67351.0,67350.0,0.00788734]
[1729618337617,0.56218135,67351.0,67350.0,0.006]
[1729618337618,0.46596206,67351.0,67350.0,0.006]
[1729618337848,0.1910421,67351.0,67350.0,0.00788734]
[1729618338079,0.19104223,67351.0,67350.0,0.00488734]
[1729618338297,0.33951723,67351.0,67350.0,0.00188734]
[1729618338535,0.33951723,67351.0,67350.0,0.00388734]
[1729618338953,0.19104223,67351.0,67350.0,0.00188734]
[1729618339203,0.19104223,67351.0,67350.0,0.00488734]
[1729618339204,0.33951723,67351.0,67350.0,0.00488734]
[1729618339939,0.33951723,67351.0,67350.0,0.003]
[1729618341107,0.33951723,67351.0,67350.0,0.00188734]
[1729618341349,0.33951723,67351.0,67350.0,0.00488734]
[1729618341568,0.34251723,67351.0,67350.0,0.003]
[1729618341810,0.148478,67350.0,67349.0,0.00188734]
[1729618342051,0.25939162,67350.0,67349.0,0.00188734]
[1729618343179,0.11391362,67350.0,67349.0,0.00188734]
[1729618343417,0.37077587,67350.0,67349.0,0.00188734]
[1729618344498,0.26539162,67350.0,67349.0,0.00188734]
[1729618348652,0.26538746,67350.0,67349.0,0.00188734]
[1729618348861,0.26538746,67350.0,67347.0,0.00188734]
[1729618348862,0.148482,67348.0,67347.0,0.00188734]
[1729618349087,0.244182,67348.0,67347.0,0.00188734]
[1729618349308,0.29697,67347.0,67344.0,0.02324367]
[1729618349541,0.1726,67345.0,67344.0,0.02513101]
[1729618349771,0.321089,67345.0,67344.0,0.02513101]
[1729618350030,0.33219895,67345.0,67344.0,0.00188734]
[1729618350483,0.321089,67345.0,67344.0,0.00188734]
[1729618350922,0.17482742,67345.0,67344.0,0.00188734]
[1729618351134,0.0957,67345.0,67344.0,0.00188734]
[1729618351655,0.0957,67345.0,67344.0,0.00388734]
[1729618352311,0.0957,67345.0,67344.0,0.00488734]
[1729618352527,0.0957,67345.0,67344.0,0.00288734]
[1729618352968,0.0957,67345.0,67344.0,0.00388734]
[1729618355483,0.00222736,67346.0,67344.0,0.00388734]
[1729618355708,0.00222736,67346.0,67345.0,0.00188734]
[1729618363619,0.01334977,67346.0,67345.0,0.00188734]
[1729618363848,0.01272064,67346.0,67345.0,0.00188734]
[1729618364133,0.01272091,67346.0,67345.0,0.00188734]
[1729618366737,0.01272091,67346.0,67345.0,0.04679037]
[1729618366956,0.01272091,67346.0,67345.0,0.00188734]
[1729618368938,0.01272091,67346.0,67345.0,0.00095117]
[1729618370939,0.0127366,67346.0,67345.0,0.00095117]
[1729618371385,0.0127366,67346.0,67345.0,0.00260317]
[1729618371591,0.0135626,67346.0,67345.0,0.00260317]
[1729618373108,0.00242423,67346.0,67345.0,0.00260317]
[1729618373309,0.01356198,67346.0,67345.0,0.00260317]
[1729618373521,0.00242423,67346.0,67345.0,0.00260317]
[1729618374402,0.01356177,67346.0,67345.0,0.00260317]
[1729618374824,0.00242423,67346.0,67345.0,0.00260317]
[1729618376391,0.01356036,67346.0,67345.0,0.00260317]
[1729618377289,0.01356007,67346.0,67345.0,0.00260317]
[1729618378829,0.14848,67349.0,67345.0,0.00260317]
[1729618378830,0.14848,67349.0,67347.0,0.00095117]
[1729618380397,0.099,67350.0,67347.0,0.00095117]
[1729618380398,0.148482,67348.0,67347.0,0.00095117]
[1729618381781,0.150482,67348.0,67347.0,0.00095117]
[1729618381998,0.004,67348.0,67347.0,0.00095117]
[1729618382235,0.449448,67348.0,67347.0,0.00095117]
[1729618382660,0.300966,67348.0,67347.0,0.00095117]
[1729618383116,0.328384,67347.0,67346.0,0.04643993]
[1729618383373,0.37292546,67347.0,67346.0,0.0473911]
[1729618383564,0.37292378,67347.0,67346.0,0.0473911]
[1729618384496,0.37492378,67347.0,67346.0,0.0473911]
[1729618385190,0.29182378,67347.0,67346.0,0.0473911]
[1729618385416,0.247284,67347.0,67346.0,0.0473911]
[1729618386345,0.29182378,67347.0,67346.0,0.0473911]
[1729618386561,0.247284,67347.0,67346.0,0.0473911]
[1729618388366,0.247284,67347.0,67346.0,0.04607366]
[1729618389208,0.0988,67347.0,67346.0,0.04607366]
[1729618392874,0.002,67347.0,67346.0,0.04607366]
[1729618393114,0.002,67347.0,67346.0,0.06184985]
[1729618393317,0.002,67347.0,67346.0,0.19455966]
[1729618393528,0.002,67347.0,67346.0,0.04607366]
[1729618393754,0.001,67347.0,67346.0,0.19455966]
[1729618393993,0.000826,67348.0,67346.0,0.19455966]
[1729618394191,0.000826,67348.0,67347.0,0.00095117]
[1729618394941,0.000826,67348.0,67347.0,0.14943517]
[1729618395521,0.000826,67348.0,67347.0,0.00095117]
[1729618396353,0.000826,67348.0,67347.0,0.00295117]
[1729618396813,0.000826,67348.0,67347.0,0.15143517]
[1729618397018,0.000826,67348.0,67347.0,0.15343517]
[1729618397241,0.000826,67348.0,67347.0,0.00495117]
[1729618397687,0.000826,67348.0,67347.0,0.15343517]
[1729618397889,0.000826,67348.0,67347.0,0.00495117]
[1729618400861,0.000826,67348.0,67347.0,0.15343517]
[1729618401070,0.000826,67348.0,67347.0,0.00495117]
[1729618404721,0.000826,67348.0,67347.0,0.15241671]
[1729618404929,0.000826,67348.0,67347.0,0.00393271]
[1729618406844,0.000826,67348.0,67347.0,0.26451613]
[1729618407064,0.000826,67348.0,67347.0,0.51624469]
[1729618407270,0.000826,67348.0,67347.0,0.51327528]
[1729618408425,0.000826,67348.0,67347.0,0.51127528]
[1729618408660,0.000826,67348.0,67347.0,0.51029374]
[1729618409123,0.000826,67348.0,67347.0,0.51229374]
[1729618409851,0.000826,67348.0,67347.0,0.51529374]
[1729618414023,0.000826,67348.0,67347.0,0.30339432]
[1729618414256,0.247808,67348.0,67347.0,0.00595117]
[1729618414717,0.327208,67348.0,67347.0,0.00595117]
[1729618415487,0.327208,67348.0,67347.0,0.00395117]
[1729618416655,0.327208,67348.0,67347.0,0.00095117]
[1729618416871,0.327208,67348.0,67347.0,0.00195117]
[1729618417110,0.327208,67348.0,67347.0,0.00395117]
[1729618417544,0.327208,67348.0,67347.0,0.00095117]
[1729618417974,0.625174,67348.0,67347.0,0.00095117]
[1729618419048,0.148484,67347.0,67346.0,0.04772566]
[1729618419974,0.25686825,67347.0,67346.0,0.04772566]
[1729618420190,0.25686825,67347.0,67346.0,0.04677449]
[1729618420409,0.25686825,67347.0,67346.0,0.04777449]
[1729618420617,0.34756825,67347.0,67346.0,0.04777449]
[1729618420828,0.34756825,67347.0,67346.0,0.04877449]
[1729618421665,0.34756825,67347.0,67346.0,0.04777449]
[1729618423204,0.34756825,67347.0,67346.0,0.0424975]
[1729618423426,0.34738954,67347.0,67346.0,0.0414975]
[1729618423693,0.0957,67347.0,67346.0,0.0414975]
[1729618423912,0.244184,67347.0,67346.0,0.0414975]
[1729618424579,0.240184,67347.0,67346.0,0.0414975]
[1729618424779,0.239184,67347.0,67346.0,0.0434975]
[1729618425221,0.243184,67347.0,67346.0,0.0434975]
[1729618426278,0.243184,67347.0,67346.0,0.0414975]
[1729618426518,0.239184,67347.0,67346.0,0.0414975]
[1729618426973,0.241184,67347.0,67346.0,0.0414975]
[1729618427444,0.240184,67347.0,67346.0,0.0414975]
[1729618428143,0.243184,67347.0,67346.0,0.0414975]
[1729618428347,0.242184,67347.0,67346.0,0.0414975]
[1729618429774,0.245184,67347.0,67346.0,0.0414975]
[1729618430645,0.37423821,67347.0,67346.0,0.0414975]
[1729618431077,0.245184,67347.0,67346.0,0.0414975]
[1729618431980,0.245184,67347.0,67346.0,0.04033281]
[1729618435529,0.0967,67347.0,67346.0,0.04033281]
[1729618435754,0.006,67347.0,67346.0,0.04033281]
[1729618435972,0.006,67347.0,67346.0,0.18881881]
[1729618436419,0.000826,67348.0,67347.0,0.148484]
[1729618436634,0.000826,67348.0,67347.0,0.14943517]
[1729618437116,0.000826,67348.0,67347.0,0.00095117]
[1729618437564,0.000826,67348.0,67347.0,0.00295117]
[1729618438021,0.000826,67348.0,67347.0,0.002]
[1729618438265,0.000826,67348.0,67347.0,0.00295117]
[1729618438982,0.000826,67348.0,67347.0,0.00328708]
[1729618440826,0.149308,67348.0,67347.0,0.00328708]
[1729618441969,0.000826,67348.0,67347.0,0.00328708]
[1729618442249,0.149308,67348.0,67347.0,0.00128708]
[1729618442477,0.23455012,67348.0,67347.0,0.00228708]
[1729618442703,0.35649225,67348.0,67347.0,0.00228708]
[1729618442942,0.35649225,67348.0,67347.0,0.001]
[1729618443164,0.35649225,67348.0,67347.0,0.002]
[1729618443385,0.35649225,67348.0,67347.0,0.001]
[1729618443801,0.148484,67347.0,67346.0,0.04033281]
[1729618443998,0.25594153,67347.0,67346.0,0.04033281]
[1729618445264,0.148484,67347.0,67346.0,0.04033281]
[1729618445916,0.151484,67347.0,67346.0,0.03869691]
[1729618446976,0.154484,67347.0,67346.0,0.03869691]
[1729618447872,0.154484,67347.0,67346.0,0.03634991]
[1729618448079,0.43846825,67347.0,67346.0,0.03634991]
[1729618448294,5.35643062,67347.0,67346.0,0.03634991]
[1729618448505,2.08082777,67347.0,67346.0,0.03634991]
[1729618448717,2.04025287,67347.0,67346.0,0.03634991]
[1729618449113,2.03425287,67347.0,67346.0,0.03634991]
[1729618449318,0.58790947,67347.0,67346.0,0.03634991]
[1729618449526,0.3149554,67347.0,67346.0,0.03634991]
[1729618449758,0.268584,67347.0,67346.0,0.03634991]
[1729618449937,0.246584,67347.0,67346.0,0.03634991]
[1729618450140,0.258584,67347.0,67346.0,0.03634991]
[1729618450972,0.264584,67347.0,67346.0,0.03634991]
[1729618451684,0.252584,67347.0,67346.0,0.03634991]
[1729618451913,0.257584,67347.0,67346.0,0.03634991]
[1729618452353,0.159484,67347.0,67346.0,0.03634991]
[1729618452577,0.011,67347.0,67346.0,0.1970313]
[1729618452789,0.011,67347.0,67346.0,0.42204623]
[1729618453020,3.011,67347.0,67346.0,0.42204623]
[1729618453474,3.006,67347.0,67346.0,0.42204623]
[1729618453740,3.0,67347.0,67346.0,0.42204623]
[1729618454198,3.0,67347.0,67346.0,0.61434623]
[1729618454422,3.0,67347.0,67346.0,0.78368811]
[1729618454920,3.0,67347.0,67346.0,0.78468811]
[1729618455384,3.0,67347.0,67346.0,0.78368811]
[1729618455867,3.0,67347.0,67346.0,0.78468811]
[1729618458167,3.0,67347.0,67346.0,0.61534623]
[1729618460850,3.0,67347.0,67346.0,0.52304623]
[1729618462896,3.0,67347.0,67346.0,0.53304623]
[1729618463112,3.0,67347.0,67346.0,0.62564623]
[1729618463587,2.27702369,67347.0,67346.0,0.81798811]
[1729618463802,2.27702369,67347.0,67346.0,0.64864623]
[1729618464021,2.27702369,67347.0,67346.0,0.81698811]
[1729618464251,2.27702369,67347.0,67346.0,0.79740311]
[1729618464252,1.40314444,67347.0,67346.0,0.79740311]
[1729618464471,0.37354744,67347.0,67346.0,0.79840311]
[1729618464682,0.21486415,67347.0,67346.0,0.80040311]
[1729618464905,0.12577315,67347.0,67346.0,0.79940311]
[1729618465111,0.12659915,67347.0,67346.0,0.79940311]
[1729618465333,0.12659915,67347.0,67346.0,0.80040311]
[1729618465556,0.12659915,67347.0,67346.0,0.63106123]
[1729618466891,0.12659915,67347.0,67346.0,0.47774623]
[1729618467769,0.12659915,67347.0,67346.0,0.45474623]
[1729618467980,0.12659915,67347.0,67346.0,0.35274623]
[1729618468620,0.12659915,67347.0,67346.0,0.35174623]
[1729618469491,0.12659915,67347.0,67346.0,0.45674623]
[1729618469726,0.12659915,67347.0,67346.0,0.45374623]
[1729618469953,0.12659915,67347.0,67346.0,0.45474623]
[1729618470166,0.12659915,67347.0,67346.0,0.45274623]
[1729618470395,0.12659915,67347.0,67346.0,0.45474623]
[1729618470603,0.12659915,67347.0,67346.0,0.45774623]
[1729618473439,0.12659915,67347.0,67346.0,0.45574623]
[1729618473906,0.12659915,67347.0,67346.0,0.45505123]
[1729618476023,0.12659915,67347.0,67346.0,0.45005123]
[1729618476260,0.12659915,67347.0,67346.0,0.34005123]
[1729618476475,0.29594103,67347.0,67346.0,0.04260608]
[1729618476703,0.12659915,67347.0,67346.0,0.19109208]
[1729618477127,0.12659915,67347.0,67346.0,0.18809208]
[1729618477347,0.12659915,67347.0,67346.0,0.03660608]
[1729618477586,0.12659915,67347.0,67346.0,0.04260608]
[1729618477803,0.61462503,67347.0,67346.0,0.04165491]
[1729618478077,0.61462503,67347.0,67346.0,0.03865491]
[1729618478300,0.61462503,67347.0,67346.0,0.04165491]
[1729618478951,0.61462503,67347.0,67346.0,0.03960608]
[1729618479664,0.61462503,67347.0,67346.0,0.03565491]
[1729618480101,0.61462503,67347.0,67346.0,0.03765491]
[1729618480102,0.90498571,67347.0,67346.0,0.03765491]
[1729618480319,0.90498571,67347.0,67343.0,0.001652]
[1729618480320,0.148491,67344.0,67343.0,0.001652]
[1729618480562,0.31995915,67344.0,67325.0,0.22361542]
[1729618480777,0.16934188,67328.0,67325.0,0.22266425]
[1729618480995,0.34034188,67328.0,67327.0,0.0017472]
[1729618481212,0.48886788,67328.0,67327.0,0.0017472]
[1729618481463,0.48886788,67328.0,67327.0,0.00079603]
[1729618482568,0.319526,67328.0,67327.0,0.00079603]
[1729618482800,0.48886788,67328.0,67327.0,0.00079603]
[1729618483005,0.49186788,67328.0,67327.0,0.00079603]
[1729618483670,0.49586788,67328.0,67327.0,0.00079603]
[1729618483885,0.48886788,67328.0,67327.0,0.00079603]
[1729618484713,0.49286788,67328.0,67327.0,0.00079603]
[1729618486044,0.49786788,67328.0,67327.0,0.00079603]
[1729618486472,0.49386788,67328.0,67327.0,0.00079603]
[1729618486894,0.49886788,67328.0,67327.0,0.00079603]
[1729618487139,0.48886788,67328.0,67327.0,0.00079603]
[1729618487344,0.58886788,67328.0,67327.0,0.00079603]
[1729618487558,0.59286788,67328.0,67327.0,0.00079603]
[1729618488211,0.71156257,67328.0,67327.0,0.00079603]
[1729618488440,0.71556257,67328.0,67327.0,0.00079603]
[1729618488652,0.59686788,67328.0,67327.0,0.00079603]
[1729618494569,0.427526,67328.0,67327.0,0.00079603]
[1729618494776,0.59686788,67328.0,67327.0,0.00079603]
[1729618496137,0.60219258,67328.0,67327.0,0.00079603]
[1729618497664,0.72181974,67328.0,67327.0,0.00079603]
[1729618497890,0.60219258,67328.0,67327.0,0.00079603]
[1729618499786,0.4336767,67328.0,67327.0,0.00079603]
[1729618500000,0.60301858,67328.0,67327.0,0.00079603]
[1729618501989,0.279826,67328.0,67327.0,0.00079603]
[1729618502259,0.428352,67328.0,67327.0,0.00079603]
[1729618502958,0.424352,67328.0,67327.0,0.00079603]
[1729618503456,0.425352,67328.0,67327.0,0.00079603]
[1729618504183,0.276826,67328.0,67327.0,0.00079603]
[1729618504433,0.421352,67328.0,67327.0,0.00079603]
[1729618504707,0.422352,67328.0,67327.0,0.00079603]
[1729618505460,0.421352,67328.0,67327.0,0.00079603]
[1729618505685,0.420352,67328.0,67327.0,0.00079603]
[1729618505926,0.420352,67328.0,67327.0,0.00279603]
[1729618506158,0.271826,67328.0,67327.0,0.1542752]
[1729618506395,0.271826,67328.0,67327.0,0.00479603]
[1729618506643,0.271826,67328.0,67327.0,0.0037472]
[1729618506872,0.421352,67328.0,67327.0,0.0037472]
[1729618507124,0.59069388,67328.0,67327.0,0.00279603]
[1729618507393,0.59069388,67328.0,67327.0,0.00079603]
[1729618507394,0.58969388,67328.0,67327.0,0.00079603]
[1729618507915,0.59069388,67328.0,67327.0,0.00079603]
[1729618508155,0.58969388,67328.0,67327.0,0.00079603]
[1729618508641,0.58969388,67328.0,67327.0,0.00279603]
[1729618508887,0.58969388,67328.0,67327.0,0.00479603]
[1729618509140,0.271826,67328.0,67327.0,0.00271103]
[1729618509416,0.271826,67328.0,67327.0,0.1521902]
[1729618509417,0.100826,67328.0,67327.0,0.1521902]
[1729618509694,0.100826,67328.0,67327.0,0.57846154]
[1729618509961,0.100826,67328.0,67327.0,0.58749123]
[1729618510471,0.100826,67328.0,67327.0,0.58549123]
[1729618510728,0.100826,67328.0,67327.0,0.5847802]
[1729618511205,0.100826,67328.0,67327.0,0.6097802]
[1729618511459,0.100826,67328.0,67327.0,0.65362276]
[1729618511720,0.100826,67328.0,67327.0,0.65527476]
[1729618511977,0.100826,67328.0,67327.0,0.67919604]
[1729618512403,0.100826,67328.0,67327.0,0.67719604]
[1729618512650,0.100826,67328.0,67327.0,0.67619604]
[1729618513123,0.100826,67328.0,67327.0,0.67819604]
[1729618513367,0.100826,67328.0,67327.0,0.6124322]
[1729618513621,0.100826,67328.0,67327.0,0.6104322]
[1729618513864,0.100826,67328.0,67327.0,0.6094322]
[1729618514078,0.100826,67328.0,67327.0,0.6114322]
[1729618514383,0.100826,67328.0,67327.0,0.6134322]
[1729618515111,0.100826,67328.0,67327.0,0.6114322]
[1729618515350,0.100826,67328.0,67327.0,0.6094322]
[1729618515600,0.100826,67328.0,67327.0,0.6134322]
[1729618516579,0.100826,67328.0,67327.0,0.41909032]
[1729618516824,0.100826,67328.0,67327.0,0.6278322]
[1729618517057,0.22266425,67343.0,67342.0,0.15644617]
[1729618517300,0.22266425,67343.0,67342.0,0.30637485]
[1729618517764,0.22266425,67350.0,67346.0,0.153486]
[1729618518012,0.22266425,67350.0,67346.0,0.47570763]
[1729618518234,0.22266425,67350.0,67346.0,0.4727382]
[1729618518935,0.22266425,67350.0,67346.0,0.4747382]
[1729618519414,0.000826,67351.0,67346.0,0.4767382]
[1729618520880,0.000826,67351.0,67346.0,0.4747382]
[1729618521374,0.000826,67351.0,67346.0,0.5767382]
[1729618521838,0.000826,67351.0,67346.0,0.5847382]
[1729618522083,0.000826,67351.0,67346.0,0.5857382]
[1729618522338,0.000826,67351.0,67346.0,0.5867382]
[1729618522578,0.000826,67351.0,67346.0,0.5767382]
[1729618522807,0.000826,67351.0,67346.0,0.5827382]
[1729618523308,0.000826,67351.0,67346.0,0.5847382]
[1729618524027,0.000826,67351.0,67346.0,0.58354043]
[1729618525032,0.000826,67351.0,67346.0,0.58554043]
[1729618527720,0.000826,67351.0,67346.0,0.41619855]
[1729618529031,0.0983,67350.0,67346.0,0.40239632]
[1729618529256,0.077826,67348.0,67346.0,0.40239632]
[1729618531251,0.077826,67348.0,67346.0,0.40039632]
[1729618531701,0.13157213,67347.0,67346.0,0.40239632]
[1729618531924,0.13157213,67347.0,67346.0,0.40039632]
[1729618533081,0.13157213,67347.0,67346.0,0.40239632]
[1729618533304,0.12659915,67347.0,67346.0,0.40239632]
[1729618534264,0.22479692,67347.0,67346.0,0.004]
[1729618534531,0.30459915,67347.0,67346.0,0.00495117]
[1729618534760,0.30459915,67347.0,67346.0,0.15343717]
[1729618534761,0.30956659,67347.0,67346.0,0.15343717]
[1729618535239,0.30956659,67347.0,67346.0,0.15143717]
[1729618535440,0.30956659,67347.0,67346.0,0.15343717]
[1729618535657,0.30956659,67347.0,67346.0,0.14943717]
[1729618535903,0.30956659,67347.0,67346.0,0.15143717]
[1729618536143,0.30956659,67347.0,67346.0,0.00495117]
[1729618536374,0.30956659,67347.0,67346.0,0.15143717]
[1729618536832,0.30956659,67347.0,67346.0,0.15343717]
[1729618538172,0.30956659,67347.0,67346.0,0.00495117]
[1729618538811,0.30956659,67347.0,67346.0,0.15343717]
[1729618539019,0.30956659,67347.0,67346.0,0.00495117]
[1729618541403,0.30956659,67347.0,67346.0,0.00095117]
[1729618541644,0.30956659,67347.0,67346.0,0.00495117]
[1729618544855,0.30956659,67347.0,67346.0,0.15343717]
[1729618545756,0.30956659,67347.0,67346.0,0.00495117]
[1729618546197,0.30956659,67347.0,67346.0,0.15343717]
[1729618546415,0.30956659,67347.0,67346.0,0.00660117]
[1729618548632,0.45805059,67347.0,67346.0,0.00565]
[1729618548858,0.45924836,67347.0,67346.0,0.00565]
[1729618549063,0.60393101,67347.0,67346.0,0.00565]
[1729618549274,0.45924836,67347.0,67346.0,0.00565]
[1729618550250,0.45924836,67347.0,67346.0,0.00365]
[1729618550471,0.45924836,67347.0,67346.0,0.00165]
[1729618550921,0.45924836,67347.0,67346.0,0.00365]
[1729618551148,0.46224836,67347.0,67346.0,0.00365]